bitfinex/quotes_ETHUSD_20220123
["timestamp","ask_amount","ask_price","bid_price","bid_amount"]
[1642970192797,0.03271409,2412.3,2411.9,1.37639853]
[1642970192995,0.03271409,2412.3,2412.0,0.898]
[1642970193593,0.03271409,2412.3,2412.0,2.198]
[1642970193796,0.97658126,2412.1,2412.0,1.198]
[1642970193996,0.97658126,2412.1,2412.0,2.198]
[1642970195034,0.03271409,2412.3,2412.0,2.198]
[1642970195843,0.03271409,2412.3,2412.0,0.598]
[1642970196044,1.12086686,2412.2,2412.0,0.598]
[1642970196238,1.12086686,2412.2,2412.0,0.34712855]
[1642970196641,5.30200954,2412.2,2411.7,0.7638]
[1642970197039,1.12086686,2412.2,2411.7,0.7638]
[1642970197239,4.18114268,2412.1,2411.7,0.7638]
[1642970197839,5.30200954,2412.2,2411.7,0.7638]
[1642970198688,4.18114268,2412.1,2411.7,0.7638]
[1642970199289,4.18114268,2412.1,2411.7,0.1658]
[1642970200391,0.03271409,2412.3,2411.7,0.1658]
[1642970200392,0.36307894,2411.8,2411.7,0.1658]
[1642970200790,4.18369281,2412.1,2411.7,0.1658]
[1642970201589,4.18369281,2412.1,2411.9,1.46547161]
[1642970201790,0.89274485,2412.0,2411.9,1.46547161]
[1642970203036,4.18664201,2412.2,2411.9,1.76547161]
[1642970203242,4.2193561,2412.3,2411.9,2.36347161]
[1642970203439,4.2193561,2412.3,2411.9,1.9368807]
[1642970203653,5.23330252,2412.7,2412.0,7.95]
[1642970203850,0.33188953,2413.2,2412.4,7.472]
[1642970203851,5.23330252,2413.2,2412.4,7.472]
[1642970204044,0.04,2413.3,2412.7,7.472]
[1642970204246,0.04,2413.3,2412.9,0.82927172]
[1642970204442,0.04,2413.3,2413.0,8.07]
[1642970204641,0.04,2413.3,2413.1,1.0]
[1642970204843,0.04,2413.3,2413.2,1.99318494]
[1642970205054,0.04,2413.3,2412.8,0.1656]
[1642970205248,6.47502103,2413.1,2412.8,0.7636]
[1642970205544,1.24171851,2413.1,2412.8,0.1656]
[1642970206096,1.12830959,2413.0,2412.8,0.10401275]
[1642970207493,1.12830959,2413.0,2412.8,1.23912456]
[1642970207696,1.12830959,2413.0,2412.8,1.43511181]
[1642970207999,1.12830959,2413.0,2412.8,3.03311181]
[1642970208599,1.12830959,2413.0,2412.8,0.598]
[1642970210132,1.12830959,2413.0,2412.5,0.598]
[1642970210332,1.12830959,2413.0,2412.2,2.0636]
[1642970210333,0.06158,2412.9,2412.2,2.0636]
[1642970210534,0.06158,2412.9,2412.2,1.0636]
[1642970210936,0.06158,2412.9,2412.2,1.3636]
[1642970211133,0.06158,2412.9,2412.4,0.3]
[1642970211336,1.18988959,2413.0,2412.2,1.198]
[1642970211634,1.18988959,2413.0,2412.2,0.898]
[1642970211837,1.18988959,2413.0,2412.3,2.30907052]
[1642970211838,0.06158,2413.0,2412.3,2.30907052]
[1642970212036,1.24171851,2413.1,2412.4,0.7636]
[1642970212236,1.24171851,2413.1,2412.5,0.10787]
[1642970212436,1.24171851,2413.1,2412.6,0.7636]
[1642970212634,1.24171851,2413.1,2412.7,0.10787]
[1642970212835,1.24171851,2413.1,2412.9,1.24448155]
[1642970213032,1.24171851,2413.1,2413.0,4.27147]
[1642970213288,1.24171851,2413.1,2413.0,4.57147]
[1642970213487,1.24171851,2413.1,2413.0,5.87147]
[1642970214089,1.24171851,2413.1,2413.0,2.47147]
[1642970214287,1.24171851,2413.1,2413.0,2.30587]
[1642970215787,1.24171851,2413.1,2413.0,5.90587]
[1642970216597,0.04,2413.3,2413.1,31.9117]
[1642970216952,0.04,2413.8,2413.3,7.65]
[1642970217244,0.04,2413.8,2413.4,0.80065759]
[1642970217442,0.04,2413.8,2413.5,2.53957111]
[1642970217643,0.04,2413.8,2413.6,1.7636]
[1642970217843,1.277,2413.9,2413.7,4.05787]
[1642970218044,1.277,2413.9,2413.8,1.7636]
[1642970218248,1.277,2413.9,2413.8,2.0636]
[1642970218950,1.277,2413.9,2413.8,2.17147]
[1642970219145,1.277,2413.9,2413.8,1.17147]
[1642970219347,1.277,2413.9,2413.8,1.00587]
[1642970220147,1.277,2413.9,2413.8,0.598]
[1642970220549,1.277,2413.9,2413.8,0.38592848]
[1642970220786,1.277,2413.9,2413.4,0.598]
[1642970220985,0.0616,2413.8,2413.4,0.598]
[1642970221384,1.01210679,2413.7,2413.4,0.598]
[1642970221984,1.277,2413.9,2413.4,0.598]
[1642970221985,0.0616,2413.8,2413.4,0.598]
[1642970222186,1.277,2413.9,2413.4,0.70587]
[1642970222488,1.277,2413.9,2413.4,1.30587]
[1642970222687,1.277,2413.9,2413.4,1.33874271]
[1642970222892,1.277,2413.9,2413.4,8.88297503]
[1642970223089,1.277,2413.9,2413.5,3.55603607]
[1642970223292,0.04,2414.3,2413.8,31.742]
[1642970223490,0.04,2414.3,2414.0,7.472]
[1642970223689,0.04,2414.3,2414.1,0.598]
[1642970223889,0.04,2414.3,2414.1,1.598]
[1642970224092,0.04,2414.3,2414.1,1.898]
[1642970224293,0.04,2414.3,2414.2,5.2614893]
[1642970224540,0.04,2414.3,2414.2,4.6094893]
[1642970224746,0.04,2414.3,2414.2,2.30587]
[1642970225142,0.04,2414.3,2414.2,1.30587]
[1642970227545,0.04,2414.3,2414.2,2.71588648]
[1642970227944,0.04,2414.3,2414.2,3.71588648]
[1642970229294,0.04,2414.3,2414.2,0.70587]
[1642970229494,0.04,2414.3,2413.8,0.598]
[1642970229692,0.04,2414.3,2413.5,0.598]
[1642970229992,0.06162,2414.2,2413.5,0.598]
[1642970230390,0.41897511,2413.8,2413.5,2.65293516]
[1642970230591,0.41897511,2413.8,2413.5,1.82553173]
[1642970231593,0.06163,2413.7,2413.3,1.1656]
[1642970232051,0.06163,2413.7,2413.2,0.898]
[1642970232249,0.06163,2413.7,2413.2,1.198]
[1642970232447,0.06163,2413.7,2413.2,0.898]
[1642970232651,0.91081253,2413.3,2413.2,0.3]
[1642970232849,0.91081253,2413.3,2413.0,0.3]
[1642970233047,0.0616,2414.1,2412.9,1.898]
[1642970233253,0.0616,2414.1,2412.9,1.00587]
[1642970233554,0.0616,2414.1,2413.0,4.1064]
[1642970233750,0.06158,2414.2,2413.1,0.7636]
[1642970233950,0.06158,2414.2,2413.1,2.17147]
[1642970234149,1.01712685,2413.7,2413.4,1.97719688]
[1642970234358,0.06158,2414.2,2413.1,2.0636]
[1642970234359,0.06158,2414.2,2413.3,0.598]
[1642970234553,0.06158,2414.2,2413.3,0.898]
[1642970235352,0.06158,2414.2,2413.3,1.198]
[1642970235552,0.93016633,2413.9,2413.3,0.898]
[1642970235794,0.0616,2413.8,2413.3,0.898]
[1642970235995,0.0616,2413.8,2413.3,0.598]
[1642970236691,0.41175877,2413.4,2413.3,0.598]
[1642970237092,0.0616,2414.0,2413.3,0.598]
[1642970238094,1.0486983,2413.4,2413.3,0.598]
[1642970238298,1.0486983,2413.4,2413.1,1.06904614]
[1642970238496,1.0486983,2413.4,2413.1,1.36904614]
[1642970238698,1.0486983,2413.4,2413.1,2.36904614]
[1642970238900,1.0486983,2413.4,2413.1,1.3]
[1642970239098,1.0486983,2413.4,2413.0,0.898]
[1642970239299,5.1486983,2413.4,2413.0,0.598]
[1642970239543,5.1486983,2413.4,2412.7,1.598]
[1642970239739,5.1486983,2413.4,2412.7,1.898]
[1642970239740,6.1259983,2413.4,2412.7,1.898]
[1642970239937,6.1259983,2413.4,2412.9,1.04435217]
[1642970240141,0.0616,2413.3,2412.9,1.04435217]
[1642970240338,5.1486983,2413.4,2412.9,1.04435217]
[1642970241540,5.1486983,2413.4,2413.2,1.40719744]
[1642970241741,4.1,2413.4,2413.2,1.40719744]
[1642970243189,5.20711075,2413.4,2413.2,1.40719744]
[1642970243585,5.20711075,2413.4,2413.0,1.598]
[1642970243786,5.20711075,2413.4,2413.0,0.898]
[1642970243986,5.20711075,2413.4,2413.0,1.89715832]
[1642970244389,5.20711075,2413.4,2413.0,0.89715832]
[1642970244586,5.20711075,2413.4,2413.1,1.49126396]
[1642970245187,4.1,2413.4,2413.1,1.49126396]
[1642970246086,1.07683396,2413.3,2413.1,1.49126396]
[1642970246287,1.07683396,2413.3,2413.1,2.79126396]
[1642970246687,1.07683396,2413.3,2413.1,1.79126396]
[1642970247552,1.07683396,2413.3,2413.0,1.898]
[1642970247756,1.07683396,2413.3,2413.0,0.3]
[1642970247950,1.07683396,2413.3,2412.8,0.3]
[1642970248152,1.07683396,2413.3,2412.7,0.898]
[1642970248557,1.07683396,2413.3,2412.7,2.29118669]
[1642970248955,1.07683396,2413.3,2412.7,3.29118669]
[1642970249155,1.07683396,2413.3,2412.9,1.14569637]
[1642970249554,1.07683396,2413.3,2412.9,1.74569637]
[1642970250359,1.49236352,2413.3,2412.9,1.69569637]
[1642970250560,1.49236352,2413.3,2412.9,0.55]
[1642970250783,1.49236352,2413.3,2412.8,0.3]
[1642970252496,1.49236352,2413.3,2412.9,0.8591306]
[1642970252889,1.49236352,2413.3,2412.9,1.1591306]
[1642970254552,1.49236352,2413.3,2412.5,0.7636]
[1642970254553,0.01271795,2413.0,2411.3,1.0371]
[1642970254750,0.01271795,2413.0,2410.8,11.62338211]
[1642970254751,0.01283928,2411.9,2410.8,7.43]
[1642970254950,0.06162,2411.8,2410.8,7.43]
[1642970255156,0.43166592,2411.8,2410.9,0.1658]
[1642970255548,0.43166592,2411.8,2411.0,2.23729414]
[1642970255748,0.43166592,2412.2,2411.1,0.19671826]
[1642970255947,0.43166592,2412.3,2411.3,31.73291036]
[1642970256147,0.43166592,2412.3,2411.3,31.73639073]
[1642970256351,0.43166592,2412.3,2411.4,0.598]
[1642970256552,0.33873842,2412.3,2411.5,24.58238357]
[1642970256750,3.79070985,2413.3,2411.6,24.27]
[1642970256751,0.33873842,2412.9,2411.6,24.27]
[1642970257057,10.16025393,2413.6,2412.2,0.03251401]
[1642970257058,0.33873842,2413.1,2412.2,0.03251401]
[1642970257250,0.00270985,2413.6,2412.3,0.1656]
[1642970257251,0.33873842,2413.4,2412.3,0.1656]
[1642970257448,0.33873842,2413.5,2412.4,8.028]
[1642970257658,5.20811545,2413.7,2412.5,1.1656]
[1642970257659,0.33873842,2413.6,2412.5,1.1656]
[1642970257850,0.33873842,2413.6,2413.1,1.40090471]
[1642970258049,0.33873842,2413.6,2413.1,2.00090471]
[1642970258294,0.33873842,2413.6,2413.1,1.70090471]
[1642970258500,0.00270985,2414.4,2413.1,1.70090471]
[1642970258501,6.94686378,2414.4,2413.4,24.27]
[1642970258702,0.00270985,2414.6,2413.8,0.01216119]
[1642970258898,0.00270985,2414.6,2413.8,8.50806119]
[1642970259098,0.04,2414.7,2413.9,25.30618836]
[1642970259295,0.04,2414.7,2414.1,24.27]
[1642970259498,0.0001,2414.3,2414.2,9.54134597]
[1642970259696,0.04,2414.7,2414.4,24.27]
[1642970259899,0.04,2414.7,2414.5,0.62956689]
[1642970260103,0.04,2415.5,2414.6,15.1556995]
[1642970260302,0.04,2415.5,2414.8,0.0396524]
[1642970260497,0.04,2415.5,2415.0,24.27]
[1642970260699,0.04,2415.5,2415.2,1.03543]
[1642970260898,0.04,2415.5,2415.3,20.9336]
[1642970261198,0.04,2415.7,2415.4,11.64726277]
[1642970261403,0.04,2415.7,2415.5,20.97207911]
[1642970261698,0.04,2415.8,2415.6,8.96424716]
[1642970261963,0.04,2415.9,2415.8,20.37402992]
[1642970262161,7.00584393,2416.9,2416.1,7.65]
[1642970262359,0.00270985,2417.0,2416.2,0.598]
[1642970262564,0.00270985,2417.0,2416.3,28.02386512]
[1642970262760,7.00589393,2417.7,2416.4,8.10117786]
[1642970262761,0.00270985,2417.7,2416.4,8.10117786]
[1642970263066,0.04263176,2417.6,2416.5,0.03917941]
[1642970263267,0.97695401,2417.2,2416.9,1.10737994]
[1642970263465,0.97695401,2417.2,2417.0,22.220094]
[1642970263664,0.04206333,2417.5,2417.2,20.3356]
[1642970263865,0.17786995,2418.2,2417.3,0.498]
[1642970264063,0.17786995,2418.2,2417.3,1.3857]
[1642970264264,0.17786995,2418.2,2417.3,1.6857]
[1642970264465,0.17786995,2418.2,2417.3,2.6857]
[1642970264664,0.90811629,2417.4,2417.3,2.6857]
[1642970264863,0.90811629,2417.4,2417.3,3.82215823]
[1642970265788,0.90811629,2417.4,2417.3,1.3857]
[1642970265789,0.80811629,2417.4,2417.3,1.3857]
[1642970265988,0.80811629,2417.4,2417.2,0.3]
[1642970266189,0.80811629,2417.4,2416.9,0.3]
[1642970266385,0.80811629,2417.4,2416.7,24.87]
[1642970266594,0.80811629,2417.4,2416.0,0.00113673]
[1642970266595,0.01262229,2417.0,2416.0,0.00113673]
[1642970266798,0.23630624,2416.3,2416.0,0.00113673]
[1642970266988,0.01290624,2416.3,2416.0,0.00113673]
[1642970267189,0.1655,2416.2,2416.0,0.00113673]
[1642970267386,0.01290624,2416.3,2416.0,0.00113673]
[1642970267587,0.1655,2416.2,2416.0,0.00113673]
[1642970267788,0.1155,2416.2,2416.1,2.31918085]
[1642970267991,0.00270985,2417.4,2416.2,5.95]
[1642970268197,0.0619,2417.6,2416.3,0.20300054]
[1642970268395,0.00270985,2417.8,2416.3,0.20300054]
[1642970268396,0.0619,2417.7,2416.3,0.20300054]
[1642970269002,1.16158475,2417.8,2416.3,1.20300054]
[1642970269199,0.06194,2417.7,2416.3,1.20300054]
[1642970270049,0.06194,2417.7,2417.1,1.29647612]
[1642970270253,0.06194,2417.7,2417.2,0.96208404]
[1642970270450,0.06194,2417.7,2417.6,1.09306016]
[1642970270651,0.01255709,2418.0,2417.6,1.09306016]
[1642970270652,0.1653,2417.9,2417.6,1.09306016]
[1642970270852,4.1,2417.7,2417.6,1.09306016]
[1642970271251,4.1,2417.7,2416.8,0.03716989]
[1642970271252,4.1,2417.7,2417.5,1.30672545]
[1642970271451,4.1,2417.7,2417.1,0.6]
[1642970271651,4.1,2417.7,2417.1,0.92768585]
[1642970271850,4.1,2417.7,2417.1,1.30708585]
[1642970272052,4.1,2417.7,2417.2,0.3]
[1642970272254,4.1,2417.7,2417.2,1.2282]
[1642970272450,4.1,2417.7,2417.3,1.14899119]
[1642970272651,4.1,2417.7,2417.3,1.44899119]
[1642970272851,4.1,2417.7,2417.4,1.40378639]
[1642970273051,4.1,2417.7,2417.4,2.06737123]
[1642970273294,4.1,2417.7,2417.4,2.36737123]
[1642970274503,0.1653,2418.6,2417.5,7.8153]
[1642970274701,0.1153,2418.9,2418.5,1.17947208]
[1642970275099,0.1153,2418.9,2418.5,1.47947208]
[1642970276400,0.1153,2418.9,2418.5,0.3]
[1642970276598,0.1153,2418.9,2417.9,0.1653]
[1642970276796,0.1153,2418.9,2418.0,0.6]
[1642970277037,0.1153,2418.9,2417.9,0.7653]
[1642970277439,1.08863578,2418.3,2418.2,1.38925307]
[1642970277644,1.08863578,2418.3,2418.2,1.98925307]
[1642970277842,1.08863578,2418.3,2418.2,0.6]
[1642970278041,1.08863578,2418.3,2417.9,0.1653]
[1642970278447,1.08863578,2418.3,2417.4,0.1653]
[1642970278651,1.08863578,2418.3,2417.2,0.1653]
[1642970278847,0.15328932,2417.6,2417.2,1.26677285]
[1642970279053,0.15328932,2417.6,2417.3,0.1653]
[1642970279246,0.15328932,2417.6,2417.2,1.26677285]
[1642970279247,0.20785,2418.5,2417.2,1.26677285]
[1642970280150,1.12065691,2417.9,2417.6,1.12137086]
[1642970280348,0.20785,2418.5,2417.6,2.40079908]
[1642970280548,0.01205121,2418.7,2417.6,2.40079908]
[1642970281005,0.01205121,2418.7,2417.6,1.27942822]
[1642970281604,0.01205121,2418.7,2416.9,1.1653]
[1642970281808,0.20785,2418.6,2416.9,0.1653]
[1642970282009,0.20785,2418.6,2417.0,0.95380758]
[1642970282010,1.09648206,2417.3,2417.0,0.95380758]
[1642970282208,1.155,2417.6,2417.0,0.95380758]
[1642970282407,0.5778,2417.6,2417.0,0.95380758]
[1642970282610,0.00270985,2418.4,2417.5,0.01203253]
[1642970282818,0.00270985,2418.4,2418.0,0.01270321]
[1642970283010,3.8157,2419.7,2418.0,1.04691321]
[1642970283011,0.00270985,2419.6,2418.0,1.04691321]
[1642970283206,0.88308986,2418.8,2418.5,0.28108871]
[1642970283407,0.00270985,2419.6,2418.5,0.28108871]
[1642970283606,0.24785,2419.9,2418.8,1.3894858]
[1642970283812,0.24785,2419.9,2418.8,1.07742326]
[1642970284014,0.24785,2419.9,2418.8,1.37742326]
[1642970284437,0.87945137,2419.0,2418.8,1.37742326]
[1642970285040,0.04,2419.9,2418.8,1.67742326]
[1642970285239,0.1269,2419.8,2418.8,25.94742326]
[1642970285646,0.1269,2419.8,2418.9,3.92436953]
[1642970285845,0.04,2419.9,2419.0,24.83831759]
[1642970286042,0.04,2419.9,2419.5,25.22380758]
[1642970286243,0.04,2419.9,2419.6,0.1653]
[1642970286445,0.04,2419.9,2419.6,1.4653]
[1642970287040,0.04,2419.9,2419.7,1.23006507]
[1642970287242,0.04,2419.9,2419.7,1.53006507]
[1642970287439,0.04,2419.9,2419.7,1.43006507]
[1642970288041,0.127,2420.6,2419.7,1.43006507]
[1642970288042,0.1171,2420.6,2419.8,4.15]
[1642970288300,0.1171,2420.6,2419.7,1.43006507]
[1642970288601,0.1171,2420.6,2419.8,0.3]
[1642970288798,0.1171,2420.6,2419.7,1.73006507]
[1642970289004,1.10177712,2419.9,2419.8,1.40988853]
[1642970289400,1.10177712,2419.9,2419.8,25.67988853]
[1642970289600,0.1171,2420.6,2419.8,25.67988853]
[1642970289798,0.11006989,2420.6,2419.8,25.67988853]
[1642970290099,0.11006989,2420.6,2419.7,0.6]
[1642970290505,0.11006989,2420.6,2419.3,1.1652]
[1642970290707,0.01286981,2420.4,2419.1,0.1652]
[1642970290902,0.11006989,2420.6,2419.1,0.1652]
[1642970290903,0.1807897,2420.6,2419.1,0.1652]
[1642970291204,0.85056614,2420.5,2419.8,0.93044285]
[1642970291402,0.007,2420.7,2419.8,0.93044285]
[1642970291403,0.007,2420.7,2419.9,0.52376]
[1642970291608,0.007,2420.7,2419.4,0.498]
[1642970291801,0.007,2420.7,2419.3,0.02576]
[1642970292045,0.1877897,2420.7,2419.1,0.01242654]
[1642970292250,0.1877897,2420.7,2418.5,0.02576]
[1642970292449,1.1048519,2419.9,2418.4,0.01240733]
[1642970292645,2.25678338,2419.8,2418.3,0.02576]
[1642970292848,0.3,2419.8,2418.3,0.02576]
[1642970293049,0.1807897,2420.0,2418.3,0.02576]
[1642970293250,2.26929481,2420.1,2418.3,0.02576]
[1642970293251,0.01251143,2420.1,2418.3,0.02576]
[1642970293852,0.01251143,2420.1,2418.9,1.15930677]
[1642970294050,0.19330113,2420.1,2418.9,1.15930677]
[1642970294254,0.19330113,2420.1,2418.9,1.45930677]
[1642970294951,1.01992137,2419.1,2418.9,1.45930677]
[1642970295150,0.19330113,2420.1,2418.9,1.45930677]
[1642970295151,1.19330113,2420.1,2418.9,1.45930677]
[1642970295453,1.19330113,2420.1,2418.9,1.15930677]
[1642970295454,0.19330113,2420.1,2418.9,1.15930677]
[1642970295692,1.19330113,2420.1,2418.9,1.15930677]
[1642970295988,2.69637869,2420.0,2418.9,1.15930677]
[1642970296186,2.99637869,2420.0,2418.3,0.1653]
[1642970296491,0.3,2420.0,2418.3,0.1653]
[1642970296689,1.69130113,2420.1,2418.4,0.03867537]
[1642970296690,1.19330113,2420.1,2418.4,0.03867537]
[1642970296895,1.19330113,2420.1,2418.7,1.11058337]
[1642970296896,0.85498653,2419.0,2418.7,1.11058337]
[1642970297092,0.85498653,2419.0,2418.7,1.41058337]
[1642970297292,0.85498653,2419.0,2418.7,0.3]
[1642970297491,0.85498653,2419.0,2418.6,1.0]
[1642970297694,0.00270985,2420.0,2419.2,1.31042614]
[1642970297893,0.00270985,2420.0,2418.7,2.76525617]
[1642970298094,0.19330113,2420.1,2418.7,0.3]
[1642970298291,0.19330113,2420.1,2418.5,0.4653]
[1642970298691,0.97768392,2418.9,2418.6,1.13310712]
[1642970298896,0.97768392,2418.9,2418.6,1.32164558]
[1642970299192,0.67768392,2418.9,2418.6,1.32164558]
[1642970299441,0.67768392,2418.9,2418.6,1.62164558]
[1642970300241,0.00270985,2420.0,2418.6,1.62164558]
[1642970300442,0.01251143,2420.1,2418.6,2.64740558]
[1642970300641,0.01251143,2420.1,2418.7,1.0]
[1642970301041,0.01251143,2420.1,2418.6,2.64740558]
[1642970301246,0.01251143,2420.1,2418.7,0.3]
[1642970301445,0.01251143,2420.1,2419.0,1.33213798]
[1642970301649,0.01251143,2420.1,2419.0,1.63213798]
[1642970302051,4.1,2420.1,2419.0,1.63213798]
[1642970302249,4.1,2420.1,2419.1,0.02576]
[1642970302449,4.1,2420.1,2419.1,0.45943111]
[1642970303054,4.1,2420.1,2419.1,0.02576]
[1642970303896,1.00201237,2419.9,2419.6,0.93338002]
[1642970304196,1.00201237,2419.9,2419.6,1.2098]
[1642970304392,1.00201237,2419.9,2419.6,1.5098]
[1642970305791,1.00201237,2419.9,2419.7,1.35646907]
[1642970306602,1.00201237,2419.9,2419.5,0.1653]
[1642970306793,1.00201237,2419.9,2419.1,0.52376]
[1642970307458,0.8375154,2419.3,2419.1,0.52376]
[1642970307656,4.1,2420.1,2419.4,1.50592382]
[1642970308057,0.0126436,2420.4,2419.4,1.80592382]
[1642970308662,0.0126436,2420.4,2419.4,0.68002394]
[1642970308863,0.007,2420.7,2419.5,0.02576]
[1642970309360,0.007,2420.7,2419.6,0.05782316]
[1642970309562,0.007,2420.7,2419.6,1.35782316]
[1642970309767,0.007,2420.7,2419.7,1.29402347]
[1642970309961,0.007,2420.7,2419.7,1.31978347]
[1642970310164,0.007,2420.7,2419.8,0.1652]
[1642970310892,1.0233579,2420.6,2419.9,0.02576]
[1642970311093,0.007,2420.7,2419.9,0.02576]
[1642970311094,0.81616987,2420.0,2419.9,0.02576]
[1642970311601,0.007,2420.7,2419.9,5.37576]
[1642970311802,0.007,2420.7,2420.0,1.6632]
[1642970311803,4.107,2420.7,2420.0,1.6632]
[1642970312108,4.107,2420.7,2420.6,5.45740751]
[1642970312304,4.107,2420.7,2420.6,7.21486751]
[1642970312502,0.007,2420.7,2420.6,8.81486751]
[1642970312697,0.85550024,2420.7,2420.6,4.86486751]
[1642970313100,0.85550024,2420.7,2420.6,2.0317]
[1642970313499,0.85550024,2420.7,2420.6,0.798]
[1642970313697,0.85550024,2420.7,2420.6,1.12376]
[1642970313698,0.0096464,2420.7,2420.6,1.12376]
[1642970313898,0.0096464,2420.7,2420.6,0.498]
[1642970314100,0.0096464,2420.7,2420.0,1.25269539]
[1642970314101,0.0096464,2420.7,2420.0,1.75902338]
[1642970314300,0.0096464,2420.7,2420.0,0.498]
[1642970314747,4.64e-05,2420.7,2420.2,0.91645439]
[1642970314946,0.04,2421.4,2420.6,0.01251333]
[1642970315144,0.04,2421.4,2420.8,0.04598045]
[1642970315339,0.00354195,2422.0,2420.9,0.68896]
[1642970315542,0.00354195,2422.0,2421.2,0.01247771]
[1642970315740,0.00354195,2422.0,2421.3,1.36416898]
[1642970315741,1.13256844,2421.6,2421.3,1.36416898]
[1642970315940,0.34992,2422.4,2421.4,0.64092696]
[1642970315941,0.30346195,2422.4,2421.4,0.64092696]
[1642970316239,0.30346195,2422.4,2421.3,1.3073019]
[1642970316240,0.30346195,2422.4,2421.3,1.9073019]
[1642970316443,0.30346195,2422.4,2421.3,1.7422019]
[1642970316940,0.30346195,2422.4,2421.4,0.19994035]
[1642970317141,1.28546343,2422.4,2422.0,1.24392282]
[1642970317341,1.28546343,2422.4,2421.5,0.52376]
[1642970317549,1.28546343,2422.4,2421.5,0.82376]
[1642970317746,1.28546343,2422.4,2421.5,0.798]
[1642970318197,0.85752629,2421.8,2421.5,1.93409189]
[1642970318394,0.85752629,2421.8,2421.5,0.798]
[1642970319195,0.30346195,2422.4,2421.7,0.02576]
[1642970319396,0.30346195,2422.4,2421.5,0.3]
[1642970319597,0.25346195,2422.4,2421.5,0.4651]
[1642970319996,0.25346195,2422.4,2421.4,0.02576]
[1642970320202,0.95296001,2422.3,2421.4,0.02576]
[1642970320397,0.95296001,2422.3,2421.0,0.52376]
[1642970320606,0.95296001,2422.3,2420.8,0.1651]
[1642970320607,1.13374971,2422.3,2420.8,0.1651]
[1642970320803,0.01205183,2421.9,2420.5,0.1651]
[1642970321004,1.17475183,2421.9,2420.2,0.02576]
[1642970321202,1.17475183,2421.9,2420.4,1.19340685]
[1642970321203,0.88656776,2420.6,2420.4,1.19340685]
[1642970322250,0.88656776,2420.6,2420.2,0.02576]
[1642970322456,4.98656776,2420.6,2420.1,0.1652]
[1642970322649,0.95296001,2420.2,2420.1,0.1652]
[1642970322856,4.1,2420.6,2420.1,0.1652]
[1642970323255,4.1,2420.6,2420.1,0.19096]
[1642970323555,4.05,2420.6,2420.1,0.19096]
[1642970323755,4.05,2420.6,2420.4,0.58957379]
[1642970324055,4.05,2420.6,2420.5,0.02576]
[1642970324457,4.05,2420.6,2420.3,1.2867419]
[1642970324861,4.05,2420.6,2420.1,0.1652]
[1642970325058,0.71737828,2420.2,2420.1,0.1652]
[1642970325258,0.71737828,2420.2,2419.8,0.02576]
[1642970325694,0.71737828,2420.2,2419.8,0.19096]
[1642970326095,0.71737828,2420.2,2420.0,1.29929023]
[1642970326597,0.71737828,2420.2,2420.0,0.3]
[1642970326799,0.71737828,2420.2,2419.4,0.498]
[1642970326996,0.71737828,2420.2,2419.2,0.19096]
[1642970328697,0.71737828,2420.2,2419.2,0.02576]
[1642970329740,0.71737828,2420.2,2418.9,1.35216433]
[1642970329949,0.71737828,2420.2,2418.8,2.74993579]
[1642970329950,0.1807897,2420.1,2418.8,0.1653]
[1642970330155,0.1807897,2420.1,2418.6,7.43]
[1642970330348,0.7295231,2420.2,2418.6,7.43]
[1642970330549,0.1807897,2420.1,2418.3,0.1653]
[1642970330753,0.7295231,2420.2,2418.3,0.1653]
[1642970330949,0.82535837,2419.1,2418.8,2.35090133]
[1642970331950,0.82535837,2419.1,2418.8,1.36301809]
[1642970332149,0.82535837,2419.1,2418.8,1.66301809]
[1642970332450,4.92535837,2419.1,2418.8,1.66301809]
[1642970333301,4.92535837,2419.1,2418.5,0.9633]
[1642970333499,6.15635837,2419.1,2418.5,0.9633]
[1642970334298,6.15635837,2419.1,2418.9,0.44094545]
[1642970334498,4.1,2419.1,2418.9,0.44094545]
[1642970334698,4.1,2419.1,2418.9,0.74094545]
[1642970335297,4.1,2419.1,2419.0,5.96761467]
[1642970335497,4.1,2419.1,2419.0,1.21761467]
[1642970337241,4.05,2419.1,2419.0,1.21761467]
[1642970337544,4.05,2419.1,2419.0,1.51761467]
[1642970337742,4.05,2419.1,2419.0,2.18091467]
[1642970338147,4.05,2419.1,2419.0,3.18091467]
[1642970338346,4.05,2419.1,2419.0,2.18091467]
[1642970338552,4.05,2419.1,2419.0,1.88091467]
[1642970338749,4.05,2419.1,2419.0,1.71561467]
[1642970338948,4.05,2419.1,2419.0,0.498]
[1642970339147,4.05,2419.1,2418.9,0.4653]
[1642970339349,4.05,2419.1,2418.9,0.3]
[1642970339548,4.05,2419.1,2418.6,0.4653]
[1642970339747,0.94114293,2418.9,2418.6,0.99679956]
[1642970340048,0.94114293,2418.9,2418.6,0.89679956]
[1642970340248,4.05,2419.1,2418.7,1.4843149]
[1642970340450,4.05,2419.1,2418.8,0.1653]
[1642970341698,4.05,2419.1,2418.4,8.0933]
[1642970341898,4.05,2419.1,2418.5,1.0]
[1642970342101,4.05,2419.1,2418.6,0.1653]
[1642970342300,0.88602937,2418.8,2418.6,0.1653]
[1642970342907,1.95192937,2418.8,2418.6,0.1653]
[1642970343903,1.95192937,2418.8,2418.6,0.1153]
[1642970344460,1.95192937,2418.8,2418.4,1.3]
[1642970344848,1.95192937,2418.8,2418.4,1.70871398]
[1642970345054,4.05,2419.1,2418.4,3.14370315]
[1642970345253,4.05,2419.1,2418.4,5.90349857]
[1642970345454,4.05,2419.1,2418.5,2.8439545]
[1642970345653,4.05,2419.1,2418.6,1.1653]
[1642970345851,4.05,2419.1,2418.7,0.798]
[1642970346049,4.05,2419.1,2418.9,2.3043642]
[1642970346454,4.05,2419.1,2418.9,2.6043642]
[1642970346655,4.05,2419.1,2419.0,2.3459545]
[1642970347257,0.2807897,2420.2,2419.0,2.3459545]
[1642970347258,0.1,2420.2,2419.1,7.65]
[1642970347458,0.1,2420.2,2419.2,0.498]